bitfinex-derivatives/quotes_BTCF0:USTF0_20220102
["timestamp","ask_amount","ask_price","bid_price","bid_amount"]
[1641107311087,1.42684244,47183.0,47181.0,0.54472532]
[1641107312287,1.42684244,47183.0,47181.0,0.36072532]
[1641107313191,1.42684244,47183.0,47181.0,0.54372532]
[1641107314594,1.42684244,47183.0,47181.0,0.36072532]
[1641107315090,1.42684244,47183.0,47181.0,0.54472532]
[1641107315793,0.14033567,47184.0,47181.0,0.184]
[1641107316296,0.14033567,47184.0,47179.0,0.36072532]
[1641107316895,1.32488462,47182.0,47179.0,0.36072532]
[1641107317099,1.32488462,47182.0,47179.0,0.54572532]
[1641107317594,0.17153567,47184.0,47179.0,0.54572532]
[1641107317595,1.32488462,47181.0,47179.0,0.54572532]
[1641107318099,1.32488462,47182.0,47179.0,0.54572532]
[1641107318496,1.32488462,47182.0,47179.0,0.36072532]
[1641107319097,1.32488462,47182.0,47179.0,0.54572532]
[1641107320301,1.32488462,47182.0,47179.0,0.36072532]
[1641107320802,1.32488462,47182.0,47181.0,0.36072532]
[1641107321001,1.42684244,47183.0,47181.0,0.36072532]
[1641107323018,1.42684244,47183.0,47181.0,0.54372532]
[1641107324320,1.42684244,47183.0,47181.0,0.36072532]
[1641107325020,1.42684244,47183.0,47181.0,0.54472532]
[1641107326326,1.42684244,47183.0,47181.0,0.36072532]
[1641107326825,1.42684244,47183.0,47181.0,0.42478532]
[1641107327128,1.42684244,47183.0,47181.0,0.60778532]
[1641107328428,1.42684244,47183.0,47181.0,0.42478532]
[1641107329027,1.42684244,47183.0,47181.0,0.60778532]
[1641107330432,1.9188214,47183.0,47181.0,0.36072532]
[1641107330631,1.31320014,47182.0,47179.0,0.60225027]
[1641107330831,1.31320014,47182.0,47179.0,0.17829434]
[1641107331031,0.02120236,47180.0,47179.0,0.01959434]
[1641107331233,0.02120236,47180.0,47173.0,0.84315037]
[1641107331234,0.02220236,47180.0,47173.0,0.84315037]
[1641107331432,0.001,47175.0,47173.0,0.84315037]
[1641107331631,0.001,47174.0,47173.0,0.84315037]
[1641107332032,0.02220551,47174.0,47167.0,1e-08]
[1641107332233,0.18,47168.0,47167.0,1e-08]
[1641107332433,0.38214567,47168.0,47167.0,1e-08]
[1641107332732,0.38314567,47168.0,47166.0,1e-08]
[1641107332934,0.18,47167.0,47166.0,1e-08]
[1641107333434,0.18,47167.0,47163.0,1.20483834]
[1641107333834,0.18,47167.0,47156.0,2.41102056]
[1641107334838,0.18,47167.0,47157.0,0.96412202]
[1641107335036,0.18,47164.0,47157.0,0.96412202]
[1641107335537,0.18,47164.0,47156.0,1.15212202]
[1641107336236,0.18,47164.0,47157.0,0.96412202]
[1641107336437,0.74435726,47168.0,47157.0,0.96412202]
[1641107336737,0.1355596,47167.0,47157.0,0.96412202]
[1641107337136,0.1355596,47167.0,47157.0,0.187]
[1641107337340,0.14033567,47168.0,47157.0,0.187]
[1641107337939,1.58633657,47168.0,47158.0,0.96412202]
[1641107338942,1.58633657,47168.0,47155.0,0.009794]
[1641107339240,0.14033567,47168.0,47158.0,0.187]
[1641107340439,0.14033567,47168.0,47155.0,0.009794]
[1641107341041,0.14033567,47168.0,47155.0,0.197794]
[1641107341240,0.14033567,47168.0,47156.0,0.3596951]
[1641107341840,0.14033567,47168.0,47157.0,0.3596951]
[1641107343241,0.14033567,47168.0,47157.0,0.5476951]
[1641107344443,0.14033567,47168.0,47157.0,0.3596951]
[1641107345048,0.14033567,47168.0,47157.0,0.5476951]
[1641107346446,0.14033567,47168.0,47157.0,0.3596951]
[1641107347146,0.14033567,47168.0,47157.0,0.5476951]
[1641107348548,0.14033567,47168.0,47157.0,0.3596951]
[1641107349048,0.14033567,47168.0,47157.0,0.5476951]
[1641107350454,0.14033567,47168.0,47157.0,0.3596951]
[1641107351051,0.14033567,47168.0,47157.0,0.5476951]
[1641107352451,0.14033567,47168.0,47156.0,0.3596951]
[1641107353053,0.14033567,47168.0,47156.0,0.5476951]
[1641107354357,0.14033567,47168.0,47156.0,0.3596951]
[1641107355158,0.14033567,47168.0,47156.0,0.5476951]
[1641107356575,0.14033567,47168.0,47156.0,0.3596951]
[1641107357076,0.14033567,47168.0,47156.0,0.5476951]
[1641107360480,0.14033567,47168.0,47156.0,0.3596951]
[1641107360884,0.14033567,47168.0,47167.0,0.3596951]
[1641107363083,0.14033567,47168.0,47167.0,0.181]
[1641107363885,0.14033567,47168.0,47167.0,0.5406951]
[1641107364385,0.14033567,47168.0,47167.0,0.3596951]
[1641107365185,0.14033567,47168.0,47167.0,0.5406951]
[1641107366690,0.14033567,47168.0,47167.0,0.3596951]
[1641107367087,0.14033567,47168.0,47167.0,0.5416951]
[1641107368488,0.14033567,47168.0,47167.0,0.3596951]
[1641107369189,0.14033567,47168.0,47167.0,0.5456951]
[1641107369888,1.87001137,47169.0,47167.0,0.5456951]
[1641107370290,1.87001137,47169.0,47167.0,0.186]
[1641107370488,1.87001137,47169.0,47166.0,0.3596951]
[1641107371089,1.87001137,47169.0,47166.0,0.5466951]
[1641107371289,0.14033567,47167.0,47166.0,0.187]
[1641107372995,0.14033567,47167.0,47165.0,0.59949184]
[1641107373197,0.14033567,47167.0,47166.0,0.187]
[1641107374397,0.14033567,47167.0,47165.0,0.59949184]
[1641107375097,1.87001137,47169.0,47165.0,0.59949184]
[1641107375297,1.87001137,47169.0,47165.0,0.78749184]
[1641107375597,0.14033567,47166.0,47165.0,0.78749184]
[1641107376500,0.14033567,47166.0,47165.0,0.59949184]
[1641107376705,1.46597644,47166.0,47165.0,1.5636403]
[1641107377299,1.46597644,47166.0,47165.0,0.78749184]
[1641107378301,1.46597644,47166.0,47165.0,1.7516403]
[1641107378499,1.46597644,47166.0,47165.0,0.59949184]
[1641107378899,1.46597644,47166.0,47165.0,1.5636403]
[1641107379203,1.46597644,47166.0,47165.0,1.7516403]
[1641107379705,1.32564077,47166.0,47165.0,1.7516403]
[1641107380110,1.32564077,47166.0,47165.0,0.78749184]
[1641107380313,1.46597644,47166.0,47165.0,0.78749184]
[1641107380512,1.46597644,47166.0,47165.0,0.59949184]
[1641107381012,0.14033567,47166.0,47165.0,0.59949184]
[1641107381214,0.14033567,47166.0,47165.0,1.7516403]
[1641107381412,0.14033567,47166.0,47165.0,1.8219803]
[1641107381914,0.14033567,47166.0,47165.0,0.85783184]
[1641107382529,0.14033567,47166.0,47165.0,0.66983184]
[1641107382732,1.4658284,47166.0,47165.0,1.6339803]
[1641107383128,1.4658284,47166.0,47165.0,1.8219803]
[1641107383334,0.14033567,47166.0,47165.0,1.8219803]
[1641107384531,0.14033567,47166.0,47165.0,1.6339803]
[1641107385231,1.46597148,47166.0,47165.0,1.8219803]
[1641107386540,1.46597148,47166.0,47165.0,1.6339803]
[1641107387134,1.32563581,47166.0,47165.0,1.6339803]
[1641107387335,1.32563581,47166.0,47165.0,1.22248846]
[1641107388539,1.46597148,47166.0,47165.0,1.03448846]
[1641107389238,1.46597148,47166.0,47165.0,1.22248846]
[1641107390538,1.46597148,47166.0,47165.0,1.03448846]
[1641107391239,1.46597148,47166.0,47165.0,1.22248846]
[1641107392540,1.32563581,47166.0,47165.0,1.03448846]
[1641107393240,1.46597148,47166.0,47165.0,1.22248846]
[1641107393442,1.46597148,47166.0,47165.0,1.82488137]
[1641107394243,1.32563581,47166.0,47165.0,0.86073291]
[1641107394643,1.32563581,47166.0,47165.0,0.67273291]
[1641107394843,1.32563581,47166.0,47165.0,1.63688137]
[1641107395242,1.32563581,47166.0,47165.0,1.82488137]
[1641107395744,0.3445,47175.0,47165.0,1.83467537]
[1641107395943,0.16546348,47176.0,47168.0,0.18]
[1641107396144,1.44608224,47171.0,47168.0,0.18]
[1641107396745,1.44608224,47171.0,47167.0,0.0211984]
[1641107397249,0.16546348,47176.0,47167.0,0.2151984]
[1641107397447,0.16546348,47176.0,47169.0,0.96414846]
[1641107397645,0.14033567,47178.0,47170.0,1.19873718]
[1641107398346,0.14033567,47178.0,47174.0,0.36075913]
[1641107399246,0.14033567,47178.0,47174.0,0.54875913]
[1641107399647,0.14033567,47178.0,47175.0,0.36075913]
[1641107399850,0.14033567,47178.0,47175.0,0.45274913]
[1641107401249,0.14033567,47178.0,47175.0,0.64174913]
[1641107401650,1.5862151,47178.0,47175.0,0.64174913]
[1641107402551,1.5862151,47178.0,47175.0,0.45274913]
[1641107403354,1.5862151,47178.0,47175.0,0.64074913]
[1641107404253,1.5862151,47178.0,47176.0,0.36075913]
[1641107405355,1.5862151,47178.0,47176.0,0.54875913]
[1641107406555,1.44587943,47178.0,47176.0,0.36075913]
[1641107407256,1.44587943,47178.0,47176.0,0.55175913]
[1641107407956,1.44587943,47180.0,47177.0,0.36075913]
[1641107409358,1.44587943,47180.0,47177.0,0.54975913]
[1641107410562,1.44587943,47180.0,47177.0,0.36075913]
[1641107411362,1.44587943,47181.0,47177.0,0.54975913]
[1641107411563,1.44587943,47181.0,47179.0,0.36075913]
[1641107411762,0.001,47180.0,47179.0,0.36075913]
[1641107412163,0.001,47180.0,47177.0,1.75417352]
[1641107412164,0.001,47180.0,47178.0,0.36075913]
[1641107412362,0.001,47179.0,47178.0,0.36075913]
[1641107412862,0.001,47179.0,47177.0,0.79026521]
[1641107413063,1.44587943,47181.0,47177.0,0.60126521]
[1641107413268,1.44587943,47181.0,47178.0,0.19]
[1641107413464,0.001,47179.0,47178.0,0.19]
[1641107414466,1.44587943,47181.0,47178.0,0.19]
[1641107414672,1.44587943,47181.0,47177.0,0.60126521]
[1641107415270,1.44587943,47181.0,47177.0,0.79026521]
[1641107416670,1.44587943,47181.0,47177.0,0.60126521]
[1641107417270,1.44587943,47181.0,47177.0,0.78926521]
[1641107418571,1.50510943,47181.0,47177.0,0.60126521]
[1641107419272,1.50510943,47181.0,47177.0,0.78626521]
[1641107419471,1.44587943,47179.0,47177.0,0.185]
[1641107419871,0.14033567,47178.0,47177.0,0.185]
[1641107420672,1.5862151,47178.0,47175.0,0.60126521]
[1641107421372,1.5862151,47178.0,47175.0,0.79026521]
[1641107421672,0.14033567,47178.0,47175.0,0.79026521]
[1641107421873,0.14033567,47178.0,47176.0,0.60126521]
[1641107422675,0.14033567,47178.0,47176.0,1.56520551]
[1641107423276,0.14033567,47178.0,47176.0,0.79026521]
[1641107424687,0.14033567,47178.0,47176.0,0.60126521]
[1641107424688,0.98253062,47178.0,47176.0,0.60126521]
[1641107424888,0.98253062,47178.0,47172.0,0.009794]
[1641107425288,0.98253062,47178.0,47176.0,0.189]
[1641107425891,0.14033567,47178.0,47176.0,0.189]
[1641107426591,0.98253062,47178.0,47172.0,0.009794]
[1641107427192,0.14033567,47178.0,47172.0,0.009794]
[1641107427390,0.14033567,47178.0,47172.0,0.198794]
[1641107428592,0.14033567,47178.0,47172.0,0.009794]
[1641107428893,0.98253062,47178.0,47172.0,0.009794]
[1641107429293,0.98253062,47178.0,47172.0,0.198794]
[1641107430594,0.98253062,47178.0,47172.0,0.009794]
[1641107431095,0.98253062,47178.0,47170.0,0.3605836]
[1641107431395,0.98253062,47178.0,47172.0,0.189]
[1641107432596,0.98253062,47178.0,47170.0,0.3605836]
[1641107433309,0.98253062,47178.0,47170.0,0.5495836]
[1641107434498,0.98253062,47178.0,47170.0,0.3605836]
[1641107435399,0.98253062,47178.0,47170.0,0.5495836]
[1641107436403,0.14033567,47178.0,47170.0,0.189]
[1641107436601,0.14033567,47178.0,47169.0,0.15012967]
[1641107436804,1.32343789,47176.0,47175.0,0.8417713]
[1641107437402,1.32343789,47176.0,47175.0,1.0307713]
[1641107438502,1.32343789,47176.0,47175.0,1.805703]
[1641107439106,1.32343789,47176.0,47175.0,0.8417713]
[1641107439303,1.32343789,47176.0,47175.0,1.0307713]
[1641107440205,1.32343789,47176.0,47175.0,1.994703]
[1641107440608,1.32343789,47176.0,47175.0,1.805703]
[1641107441307,1.32343789,47176.0,47175.0,1.994703]
[1641107442707,1.32343789,47176.0,47175.0,0.8417713]
[1641107443111,0.14033567,47178.0,47175.0,0.8417713]
[1641107443307,1.5862151,47178.0,47175.0,0.189]
[1641107443807,1.5862151,47178.0,47176.0,0.36131991]
[1641107444613,0.14033567,47178.0,47177.0,0.36131991]
[1641107445211,0.14033567,47178.0,47177.0,0.54931991]
[1641107446611,0.14033567,47178.0,47177.0,0.36131991]
[1641107447215,0.14033567,47178.0,47177.0,0.54931991]
[1641107448027,0.14033567,47178.0,47177.0,0.188]
[1641107449024,0.14033567,47178.0,47177.0,0.54931991]
[1641107449223,0.14033567,47178.0,47177.0,0.73731991]
[1641107449424,0.14033567,47178.0,47177.0,0.376]
[1641107450636,0.14033567,47178.0,47176.0,0.44174991]
[1641107451238,0.14033567,47178.0,47176.0,0.63074991]
[1641107452641,0.14033567,47178.0,47176.0,0.44174991]
[1641107452839,0.14033567,47178.0,47177.0,0.36131991]
[1641107453640,0.14033567,47178.0,47176.0,0.63074991]
[1641107454041,1.8909904,47180.0,47176.0,0.63074991]
[1641107454642,0.14033567,47178.0,47177.0,0.36131991]
[1641107455341,0.14033567,47178.0,47177.0,0.54931991]
[1641107456544,0.14033567,47178.0,47177.0,0.36131991]
[1641107457243,0.14033567,47178.0,47177.0,0.54931991]
[1641107459246,0.14033567,47178.0,47177.0,0.73731991]
[1641107460747,0.14033567,47178.0,47177.0,0.36131991]
[1641107461351,0.14033567,47178.0,47177.0,0.54931991]
[1641107462755,0.14033567,47178.0,47177.0,0.36131991]
[1641107463353,0.14033567,47178.0,47177.0,0.54931991]
[1641107464558,0.14033567,47178.0,47177.0,0.36131991]
[1641107465259,0.14033567,47178.0,47177.0,0.54931991]
[1641107466558,0.14033567,47178.0,47177.0,0.36131991]
[1641107467361,0.14033567,47178.0,47177.0,0.54931991]
[1641107467867,1.44587943,47181.0,47177.0,0.83059391]
[1641107468462,1.44587943,47181.0,47177.0,0.469274]
[1641107468662,1.58143233,47185.0,47178.0,1.80561267]
[1641107468863,1.44587943,47185.0,47181.0,0.14033567]
[1641107469764,1.44587943,47186.0,47182.0,0.96384137]
[1641107469965,1.44587943,47186.0,47184.0,0.3602855]
[1641107471365,1.44587943,47186.0,47184.0,0.5482855]
[1641107471767,0.20119823,47185.0,47184.0,0.5482855]
[1641107471969,0.14166471,47185.0,47184.0,0.5482855]
[1641107472467,0.32166471,47185.0,47184.0,0.5482855]
[1641107472668,0.32166471,47185.0,47184.0,0.3602855]
[1641107472870,0.46200038,47185.0,47184.0,0.3602855]
[1641107473270,0.46200038,47185.0,47184.0,0.174]
[1641107473676,1.57400038,47185.0,47184.0,0.174]
[1641107473881,0.12640747,47183.0,47178.0,0.3602855]
[1641107474069,0.18,47179.0,47178.0,0.3602855]
[1641107474269,1.112,47182.0,47178.0,0.3602855]
[1641107474476,0.18,47179.0,47178.0,0.3602855]
[1641107474871,0.181,47179.0,47178.0,0.3602855]
[1641107475272,0.369,47179.0,47176.0,0.96155399]
[1641107475477,0.001,47177.0,47176.0,0.3602855]
[1641107475672,0.0633,47177.0,47176.0,0.3602855]
[1641107475873,0.0633,47177.0,47174.0,0.3602855]
[1641107476072,0.001,47175.0,47174.0,0.3602855]
[1641107476872,0.14133567,47175.0,47174.0,0.3602855]
[1641107477071,1.46651471,47175.0,47174.0,0.3602855]
[1641107477272,1.65451471,47175.0,47174.0,0.3602855]
[1641107478673,1.46651471,47175.0,47174.0,0.3602855]
[1641107479074,1.46551471,47175.0,47174.0,0.3602855]
[1641107479274,1.65351471,47175.0,47174.0,0.3602855]
[1641107479475,0.32833567,47175.0,47173.0,0.60126849]
[1641107480276,0.001,47174.0,47173.0,0.60126849]
[1641107480976,0.001,47174.0,47172.0,1.56524488]
[1641107481178,1.46551471,47175.0,47172.0,1.56524488]
[1641107481380,0.188,47174.0,47172.0,1.56524488]
[1641107481782,0.188,47174.0,47172.0,0.60126849]
[1641107482683,1.46551471,47175.0,47172.0,0.60126849]
[1641107483285,1.65351471,47175.0,47172.0,0.60126849]
[1641107483484,1.65351471,47175.0,47173.0,0.96396401]
[1641107483684,1.65351471,47175.0,47173.0,1.5652325]
[1641107483685,0.001,47174.0,47173.0,1.5652325]
[1641107484290,1.65351471,47175.0,47173.0,1.5652325]
[1641107484701,1.46551471,47175.0,47173.0,1.5652325]
[1641107485000,0.001,47174.0,47173.0,1.5652325]
[1641107485394,1.65351471,47175.0,47173.0,1.5652325]
[1641107485901,1.65351471,47175.0,47173.0,0.60126849]
[1641107486101,0.001,47174.0,47173.0,0.60126849]
[1641107486294,1.65351471,47175.0,47173.0,0.60126849]
[1641107486496,0.001,47174.0,47173.0,0.60126849]
[1641107487201,1.46551471,47175.0,47173.0,1.56524896]
[1641107487395,0.189,47174.0,47173.0,1.56524896]
[1641107487797,0.189,47174.0,47173.0,0.60126849]
[1641107488198,0.188,47174.0,47173.0,0.60126849]
[1641107488397,0.189,47174.0,47173.0,0.60126849]
[1641107488596,0.001,47174.0,47173.0,1.56525361]
[1641107488796,1.46551471,47175.0,47173.0,1.56525361]
[1641107488996,0.001,47174.0,47173.0,1.56525361]
[1641107489196,0.001,47174.0,47173.0,0.60126849]
[1641107489597,1.65351471,47175.0,47173.0,0.60126849]
[1641107489799,0.001,47174.0,47173.0,0.60126849]
[1641107489997,0.001,47174.0,47173.0,1.56523708]
[1641107490398,1.65351471,47175.0,47173.0,1.56523708]
[1641107490613,0.001,47174.0,47173.0,1.56523708]
[1641107491397,0.189,47174.0,47173.0,1.56523708]
[1641107492599,1.46551471,47175.0,47173.0,1.56523708]
[1641107492600,1.46551471,47175.0,47173.0,0.96396859]
[1641107492798,1.32617904,47174.0,47173.0,0.96396859]
[1641107493298,1.51417904,47174.0,47173.0,0.96396859]
[1641107493602,1.51417904,47174.0,47172.0,0.8417713]
[1641107493799,1.51317904,47174.0,47172.0,0.8417713]
[1641107494599,1.51317904,47174.0,47168.0,0.14033567]
[1641107494600,1.32517904,47174.0,47173.0,0.8417713]
[1641107494900,1.32617904,47174.0,47173.0,0.8417713]
[1641107495398,1.51317904,47174.0,47173.0,0.8417713]
[1641107495600,1.51417904,47174.0,47173.0,0.8417713]
[1641107495801,0.189,47174.0,47173.0,0.8417713]
[1641107496203,0.188,47174.0,47173.0,0.8417713]
[1641107496401,0.189,47174.0,47173.0,0.8417713]
[1641107497204,0.001,47174.0,47173.0,0.8417713]
[1641107497404,0.189,47174.0,47173.0,0.8417713]
[1641107499306,0.377,47174.0,47173.0,0.8417713]
[1641107499706,0.376,47174.0,47173.0,0.8417713]
[1641107499906,0.377,47174.0,47173.0,0.8417713]
[1641107500216,0.376,47174.0,47173.0,0.8417713]
[1641107500406,0.377,47174.0,47173.0,0.8417713]
[1641107500606,0.001,47174.0,47173.0,0.8417713]
[1641107501309,0.189,47174.0,47173.0,0.8417713]
[1641107502608,0.001,47174.0,47173.0,0.8417713]
[1641107503410,0.189,47174.0,47173.0,0.8417713]
[1641107503813,1.51417904,47174.0,47173.0,0.8417713]
[1641107504611,1.32617904,47174.0,47173.0,0.8417713]
[1641107505413,1.52117904,47174.0,47173.0,0.8417713]
[1641107506618,1.32617904,47174.0,47173.0,0.8417713]
[1641107506815,0.001,47174.0,47173.0,0.8417713]
[1641107507316,0.196,47174.0,47173.0,0.8417713]
[1641107508715,0.001,47174.0,47173.0,0.8417713]
[1641107509319,0.196,47174.0,47173.0,0.8417713]
[1641107509917,0.195,47174.0,47173.0,0.8417713]
[1641107510120,0.196,47174.0,47173.0,0.8417713]
[1641107510517,0.001,47174.0,47173.0,0.8417713]
[1641107511119,1.46551471,47175.0,47173.0,0.8417713]
[1641107511319,0.195,47174.0,47173.0,0.8417713]
[1641107511923,0.196,47174.0,47173.0,0.8417713]
[1641107512623,0.001,47174.0,47173.0,0.8417713]
[1641107513223,0.001,47174.0,47173.0,1.0147713]
[1641107513422,0.184,47174.0,47173.0,1.0147713]
[1641107514525,0.184,47174.0,47173.0,0.8417713]
[1641107514725,0.001,47174.0,47173.0,1.80573989]
[1641107514924,0.001,47174.0,47173.0,0.8417713]
[1641107515325,0.184,47174.0,47173.0,1.0147713]
[1641107516227,0.184,47174.0,47173.0,1.97873989]
[1641107516624,0.001,47174.0,47173.0,1.80573989]
[1641107516826,1.46551471,47175.0,47173.0,1.80573989]
[1641107517328,1.64451471,47175.0,47173.0,1.97873989]
[1641107517842,0.31933567,47175.0,47174.0,0.8417713]
[1641107518243,0.31933567,47175.0,47174.0,1.80573989]
[1641107518743,0.14033567,47175.0,47174.0,1.80573989]
[1641107519346,0.31833567,47175.0,47174.0,1.92473989]
[1641107520547,0.31833567,47175.0,47174.0,1.80573989]
[1641107520747,0.14033567,47175.0,47174.0,0.96396859]
[1641107521247,0.31833567,47175.0,47174.0,1.09396859]
[1641107521648,0.31833567,47175.0,47174.0,0.13]
[1641107522049,0.31833567,47175.0,47174.0,1.09396859]
[1641107522251,0.178,47175.0,47174.0,1.09396859]
[1641107522748,0.14033567,47175.0,47174.0,0.96396859]
[1641107523349,0.31833567,47175.0,47174.0,0.96974051]
[1641107524147,0.31833567,47175.0,47174.0,1.09496859]
[1641107524651,0.14033567,47175.0,47174.0,0.96396859]
[1641107525349,0.31833567,47175.0,47174.0,1.03096859]
[1641107525549,0.31833567,47175.0,47174.0,0.067]
[1641107526551,0.31833567,47175.0,47174.0,1.03096859]
[1641107526750,0.14033567,47175.0,47174.0,0.96396859]
[1641107527354,0.31833567,47175.0,47174.0,1.03096859]
[1641107527852,0.31833567,47175.0,47174.0,1.63017206]
[1641107528752,0.14033567,47175.0,47174.0,1.56317206]
[1641107529353,1.64351471,47175.0,47174.0,1.03096859]
[1641107530654,1.46551471,47175.0,47174.0,0.96396859]
[1641107531356,1.50317904,47175.0,47174.0,1.03096859]
[1641107531556,1.50317904,47175.0,47174.0,0.067]
[1641107532157,1.50317904,47175.0,47174.0,1.03096859]
[1641107532457,1.64351471,47175.0,47174.0,1.03096859]
[1641107532659,1.46551471,47175.0,47174.0,0.96396859]
[1641107533257,1.46551471,47175.0,47174.0,0.83874051]
[1641107533456,1.64351471,47175.0,47174.0,0.90574051]
[1641107534358,0.31833567,47175.0,47174.0,1.63016633]
[1641107534758,0.14033567,47175.0,47174.0,1.56316633]
[1641107535361,0.31833567,47175.0,47174.0,1.63016633]
[1641107536663,0.14033567,47175.0,47174.0,1.56316633]
[1641107537361,0.31833567,47175.0,47174.0,1.63016633]
[1641107537562,0.31833567,47175.0,47174.0,0.66619774]
[1641107537766,0.178,47175.0,47174.0,0.66619774]
[1641107538263,0.178,47175.0,47174.0,1.63016633]
[1641107538562,0.31833567,47175.0,47174.0,1.63016633]
[1641107538764,0.14033567,47175.0,47174.0,1.56316633]
[1641107539364,0.31833567,47175.0,47174.0,0.66619774]
[1641107540069,0.31833567,47175.0,47174.0,1.63016633]
[1641107540663,0.14033567,47175.0,47174.0,1.56316633]
[1641107541467,0.31833567,47175.0,47174.0,1.63016633]
[1641107541665,0.31833567,47175.0,47174.0,0.66619774]
[1641107542268,0.31833567,47175.0,47174.0,1.63016633]
[1641107542866,0.14033567,47175.0,47174.0,1.56316633]
[1641107543367,0.31833567,47175.0,47174.0,0.66619774]
[1641107544368,0.31833567,47175.0,47174.0,1.63016633]
[1641107544667,0.31833567,47175.0,47174.0,0.96396859]
[1641107544668,0.14033567,47175.0,47174.0,0.96396859]
[1641107545168,0.14033567,47175.0,47173.0,0.83874051]
[1641107545369,0.31833567,47175.0,47174.0,0.66721848]
[1641107545568,0.33954054,47175.0,47171.0,1.19873718]
[1641107545771,1.31320678,47172.0,47161.0,1.7725]
[1641107546068,0.18,47165.0,47164.0,1.18963102]
[1641107546267,0.26425,47165.0,47164.0,1.18963102]
[1641107546467,0.78289841,47165.0,47164.0,1.18963102]
[1641107546868,1.06356975,47165.0,47163.0,1.44276355]
[1641107547068,1.06356975,47165.0,47150.0,0.32033567]
[1641107547069,1.113,47164.0,47153.0,1.44276355]
[1641107547268,0.001,47159.0,47153.0,1.44276355]
[1641107547468,0.001,47154.0,47153.0,1.44276355]
[1641107547668,0.07526,47154.0,47153.0,1.44276355]
[1641107548268,0.07426,47154.0,47153.0,1.44276355]
[1641107548471,0.43681214,47154.0,47150.0,1.76309922]
[1641107548668,0.43581214,47154.0,47150.0,1.76309922]
[1641107549271,0.43581214,47154.0,47151.0,0.12051028]
[1641107549470,0.36155214,47153.0,47151.0,0.12051028]
[1641107549672,0.36155214,47153.0,47150.0,0.49833567]
[1641107550673,0.36155214,47153.0,47150.0,0.32033567]
[1641107551077,0.36155214,47153.0,47150.0,1.76309922]
[1641107551376,0.54255214,47153.0,47150.0,1.94509922]
[1641107551575,0.54255214,47153.0,47150.0,0.50233567]
[1641107552775,0.181,47153.0,47150.0,1.76309922]
[1641107552975,0.36155214,47154.0,47150.0,1.76309922]
[1641107553176,0.36155214,47154.0,47150.0,1.84610922]
[1641107553377,0.36155214,47154.0,47150.0,2.03610922]
[1641107553681,0.36155214,47153.0,47151.0,1.44276355]
[1641107555378,0.36155214,47153.0,47151.0,1.63276355]
[1641107556782,0.36155214,47153.0,47151.0,1.44276355]
[1641107557480,0.36155214,47153.0,47151.0,1.63276355]
[1641107558793,0.36155214,47153.0,47151.0,1.44276355]
[1641107559298,0.14033567,47160.0,47151.0,0.60111528]
[1641107559494,0.14033567,47160.0,47151.0,0.79211528]
[1641107559795,0.80682337,47163.0,47151.0,0.79211528]
[1641107559996,0.80682337,47163.0,47153.0,0.36062327]
[1641107561097,0.14033567,47160.0,47153.0,0.36062327]
[1641107562703,0.14033567,47160.0,47152.0,0.36062327]
[1641107563406,0.33133567,47160.0,47152.0,0.36062327]
[1641107564405,0.33133567,47160.0,47154.0,0.18]
[1641107564805,0.14033567,47160.0,47158.0,0.18]
[1641107565004,0.36155214,47163.0,47155.0,0.34153964]
[1641107565502,0.74297974,47165.0,47158.0,0.187]
[1641107565702,0.14033567,47165.0,47158.0,0.367]
[1641107566604,0.14033567,47165.0,47158.0,0.72762327]
[1641107567403,0.178,47165.0,47158.0,0.72862327]
[1641107567604,0.178,47165.0,47159.0,0.36062327]
[1641107568804,0.36155214,47169.0,47159.0,0.36062327]
[1641107569004,0.36155214,47169.0,47161.0,0.14033567]
[1641107569204,0.36155214,47169.0,47161.0,0.22817567]
[1641107569405,0.55455214,47169.0,47161.0,0.22817567]
[1641107570404,0.193,47169.0,47161.0,0.22817567]
[1641107570806,1.01068924,47170.0,47161.0,0.22817567]
[1641107571407,1.20068924,47170.0,47161.0,0.22817567]
[1641107571608,1.20068924,47170.0,47161.0,0.14033567]
[1641107571808,0.36155214,47168.0,47161.0,0.14033567]
[1641107573310,0.36155214,47169.0,47161.0,0.14033567]
[1641107573510,0.193,47168.0,47161.0,0.14033567]
[1641107573711,0.193,47168.0,47162.0,0.18]
[1641107573911,0.193,47168.0,47162.0,0.27024]
[1641107574310,0.193,47168.0,47162.0,0.09024]
[1641107574711,0.60264407,47170.0,47162.0,0.09024]
[1641107574712,0.001,47163.0,47162.0,0.09024]
[1641107574919,0.001,47163.0,47161.0,0.14033567]
[1641107575110,0.001,47162.0,47161.0,0.14033567]
[1641107575311,0.50188781,47170.0,47161.0,0.14033567]
[1641107575512,0.36155214,47168.0,47161.0,0.33033567]
[1641107576413,0.001,47163.0,47161.0,0.33033567]
[1641107576712,0.36155214,47168.0,47161.0,0.33033567]
[1641107576914,0.36155214,47168.0,47161.0,0.14033567]
[1641107577414,0.55355214,47168.0,47161.0,0.14033567]
[1641107578013,0.001,47163.0,47161.0,0.14033567]
[1641107578215,0.001,47162.0,47161.0,0.14033567]
[1641107579513,0.164,47162.0,47161.0,0.32633567]
[1641107579715,0.165,47162.0,47161.0,0.32633567]
[1641107580115,0.25538835,47162.0,47161.0,1.2159415]
[1641107580315,0.25438835,47162.0,47161.0,1.2159415]
[1641107580513,0.25538835,47162.0,47161.0,1.2159415]
[1641107580714,0.25438835,47162.0,47161.0,1.07560583]
[1641107580914,0.25538835,47162.0,47161.0,2.27612968]
[1641107581315,0.09138835,47162.0,47161.0,2.09012968]
[1641107581516,0.27938835,47162.0,47161.0,2.09012968]
[1641107581717,1.60508713,47162.0,47161.0,0.88960583]
[1641107582421,1.60508713,47162.0,47161.0,0.6007013]
[1641107582817,1.41708713,47162.0,47161.0,0.6007013]
[1641107583019,0.09138835,47162.0,47161.0,0.6007013]
[1641107583517,0.27938835,47162.0,47161.0,0.6007013]
[1641107584120,0.27838835,47162.0,47161.0,0.6007013]
[1641107584317,0.27938835,47162.0,47161.0,0.6007013]
[1641107584518,0.27838835,47162.0,47161.0,0.6007013]
[1641107585023,0.09038835,47162.0,47161.0,0.6007013]
[1641107585220,0.09038835,47162.0,47160.0,0.84081759]
[1641107585419,1.41618629,47162.0,47161.0,0.174]
[1641107585619,1.60118629,47162.0,47161.0,0.174]
[1641107586019,0.184,47162.0,47161.0,1.06360583]
[1641107586220,0.185,47162.0,47161.0,2.26412968]
[1641107587019,0.09038835,47162.0,47161.0,1.20052385]
[1641107587421,0.09038835,47162.0,47161.0,2.09012968]
[1641107587624,0.27438835,47162.0,47161.0,2.26612968]
[1641107587820,0.27338835,47162.0,47161.0,2.26612968]
[1641107588021,0.27438835,47162.0,47161.0,2.26612968]
[1641107588720,0.27338835,47162.0,47161.0,2.26612968]
[1641107588921,0.001,47162.0,47161.0,2.93094965]